[Event "Marshall CC FIDE Premier January 2024"]
[Site "New York"]
[Date "2024.01.08"]
[Round "5.3"]
[White "Oh, James Y"]
[Black "Nkululeko, Nkosi"]
[Result "1-0"]
[ECO "B01"]
[WhiteElo "2015"]
[BlackElo "1867"]
[Annotator "TA"]
[PlyCount "201"]
[EventDate "2024.01.05"]
[EventType "swiss"]
[EventCountry "USA"]
[SourceTitle "playchess.com"]
[Source "ChessBase"]
[SourceQuality "1"]
[TimeControl "5400+30"]

{[%evp 9,201,47,56,16,80,74,77,67,87,78,81,52,83,57,94,72,95,87,102,0,54,10,66,0,52,50,52,51,78,55,59,36,63,55,70,74,78,72,102,89,91,78,85,75,95,0,91,30,69,0,78,41,89,97,103,87,92,94,92,74,79,61,58,0,79,75,72,68,75,60,83,70,97,70,80,73,102,91,122,122,114,104,100,82,105,100,127,118,117,106,121,117,118,109,115,58,137,130,129,114,175,54,59,59,50,48,53,47,54,50,49,43,77,59,39,35,89,94,99,99,99,99,99,129,315,314,315,315,315,315,608,600,584,572,528,496,610,620,604,597,534,538,471,457,1524,1422,4133,2253,5081,3275,29980,29981,29981,29982,29982,29983,29983,29984,29984,29985,29985,29986,29987,29987,29987,29988,29988,29989,29989,29990,29990,29989,29989,29990,29990,29991,29991,29988,29993,29992,29992,29993,29993,29994,29994,29995,29995,29996,29996,29997,29997,29998,29998,29999]} 1. e4 {[%emt 0:00:30]} d5 {[%emt 0:01:53]} 2. exd5 {[%emt 0:00:23]} Qxd5 {[%emt 0:00:08]} 3. Nc3 {[%emt 0:00:10]} Qd6 {[%emt 0:00:14]} 4. Nf3 {[%emt 0:00:25]} Nf6 {[%emt 0:00:49]} 5. d4 {[%emt 0:00:29]} c6 {[%emt 0:00:21]} 6. Bc4 {[%emt 0:01:37] B01: Scandinavian Defence.} e6 {[%emt 0:01:57]} (6... Bg4 $11) 7. O-O {[%emt 0:02:35]} Be7 {[%emt 0:00:11] [#]} 8. Qe2 $1 {[%emt 0:02:56] White is better.} b5 {[%emt 0:01:27]} 9. Bd3 {[%emt 0:00:43]} Nbd7 {[%emt 0:03:14]} 10. Bg5 {[%emt 0:03:30] [#]} b4 $146 {[%emt 0:02:57]} ({Predecessor:} 10... Bb7 11. Rad1 O-O 12. Ne4 Nxe4 13. Qxe4 f5 14. Bxe7 Qxe7 15. Qe3 Rae8 16. Rfe1 Nb6 {½-½ Ghajar Koshravi,A (1795)-Behnick,E (1758) Ruhrgebiet Verbandsliga Gruppe 1 1415 2014 (7.7)}) 11. Na4 {[%emt 0:02:02]} Nd5 {[%emt 0:04:23]} 12. g3 {[%emt 0:00:54]} h6 {[%emt 0:10:37]} 13. Bxe7 {[%emt 0:03:14]} Qxe7 {[%emt 0:00:25]} 14. Rad1 {[%emt 0:03:05]} ({White should try} 14. Ne5 $16) 14... O-O {[%emt 0:00:46]} (14... N5b6 $1 $11 15. b3 Bb7) 15. Qe4 {[%emt 0:02:32][%csl Gd3][%cal Re4h7]} N7f6 {[%emt 0:01:22] Against Qh7+} (15... N5f6 $11 16. Qh4 (16. Qxc6 Rb8 $11) 16... Qd6) 16. Qe2 {[%emt 0:02:24]} Nd7 {[%emt 0:00:48]} 17. Ne5 {[%emt 0:01:12]} Nxe5 {[%emt 0:04:46]} 18. Qxe5 {[%emt 0:01:13]} Qc7 {[%emt 0:00:54]} 19. Qe4 {[%emt 0:05:44][%csl Gd3][%cal Re4h7]} (19. Nc5 {seems wilder.} Rd8 20. Rfe1 Rb8 21. Qe4) 19... Nf6 {[%emt 0:00:02] Against Qh7+} 20. Qe2 {[%emt 0:01:22]} Rd8 {[%emt 0:00:53]} 21. Nc5 {[%emt 0:02:19]} Kf8 {[%emt 0:02:24]} 22. Bc4 {[%emt 0:01:21]} a5 {[%emt 0:02:49]} 23. Rfe1 {[%emt 0:03:47]} Rd6 {[%emt 0:02:21]} 24. Qf3 {[%emt 0:04:25]} Kg8 {[%emt 0:07:18]} 25. Qf4 {[%emt 0:06:51]} Qd8 {[%emt 0:00:25]} 26. Qe5 {[%emt 0:02:38] White is much more active.} Ng4 {[%emt 0:01:25]} 27. Qf4 {[%emt 0:00:11]} Nf6 {[%emt 0:00:02]} 28. Rd3 {[%emt 0:02:04]} (28. a3 $16) 28... Ra7 {[%emt 0:01:30]} 29. Rdd1 {[%emt 0:02:29]} (29. a3 $14) 29... Re7 {[%emt 0:02:16]} (29... Ra8 $1 $11) 30. c3 {[%emt 0:02:09]} Nd5 {[%emt 0:01:27]} (30... e5 $14 {is more appropriate.} 31. Rxe5 (31. dxe5 $2 Rxd1 32. Nd3 Rxd3 $19) 31... g5) 31. Qf3 $16 {[%emt 0:00:14]} Ra7 {[%emt 0:01:58]} 32. Bf1 {[%emt 0:02:24]} Qf6 {[%emt 0:01:38]} 33. Qd3 {[%emt 0:02:18]} Qd8 {[%emt 0:00:34]} 34. Qc4 {[%emt 0:00:50]} Qb6 {[%emt 0:01:10]} 35. Ne4 {[%emt 0:02:49]} Rd8 {[%emt 0:00:21]} 36. Nc5 {[%emt 0:01:22] Inhibits Ba6.} (36. Qd3 $14) 36... Rc7 {[%emt 0:03:15]} (36... Rd6 $11 {keeps the balance.}) 37. Rb1 {[%emt 0:01:56]} Ra7 {[%emt 0:01:27]} 38. Qd3 {[%emt 0:01:24]} Re7 {[%emt 0:01:38][%cal Oe6e5]} 39. f4 {[%emt 0:01:51]} Rde8 {[%emt 0:01:08]} 40. Qf3 {[%emt 0:01:03]} Kf8 {[%emt 0:03:19]} 41. h3 {[%emt 0:00:32]} Kg8 {[%emt 0:02:09]} 42. Kh2 {[%emt 0:00:05]} Qc7 {[%emt 0:03:55]} 43. Rbc1 {[%emt 0:01:37]} f6 {[%emt 0:01:07]} 44. c4 {[%emt 0:01:31]} Nb6 {[%emt 0:00:40]} 45. Qe4 {[%emt 0:00:46]} (45. Bd3 {feels hotter.} Nd7 46. Bg6 Rd8 47. Nxe6 Rxe6 48. Rxe6 Ne5 49. Rxe5 fxe5 50. fxe5 Rxd4 51. Rc2) 45... Nd7 {[%emt 0:01:34] [#]} 46. Nxd7 {[%emt 0:01:18]} (46. Bd3 $6 f5 47. Qf3 Nxc5 48. dxc5 e5 49. fxe5 Rxe5 $15) 46... Qxd7 {[%emt 0:03:05]} 47. Rcd1 {[%emt 0:00:21]} Bb7 {[%emt 0:00:24][%cal Oc6c5]} 48. Bd3 {[%emt 0:00:24]} f5 {[%emt 0:00:50]} 49. Qe5 {[%emt 0:00:57]} Qd8 {[%emt 0:00:26]} 50. Bf1 {[%emt 0:00:44][%cal Bd3f1,Bf1g2,Bg2f3][%mdl 32]} Rd7 {[%emt 0:00:47]} 51. Bg2 {[%emt 0:01:14]} Kf7 {[%emt 0:00:28]} 52. Qc5 {[%emt 0:00:47]} (52. Qe3 $16) 52... Qa8 {[%emt 0:00:48]} (52... Qe7 $1 $14) 53. Re5 {[%emt 0:00:23]} Qd8 {[%emt 0:01:01]} 54. Bf3 {[%emt 0:02:13]} (54. Bxc6 $6 Bxc6 55. Qxc6 Rxd4 56. Rxd4 Qxd4 $11) 54... Rd6 {[%emt 0:00:53]} (54... Qe7 $16) 55. Qxa5 {[%emt 0:02:14]} ({White should play} 55. Qa7 $18) 55... Rxd4 $14 {[%emt 0:00:44]} 56. Rxd4 {[%emt 0:01:32]} (56. Bh5+ g6 57. Qxb4 (57. Rxd4 $2 Qxd4 58. Qxb4 Qf2+ 59. Kh1 Ba8 $19) 57... Ba8 $17) 56... Qxd4 {[%emt 0:00:04]} 57. Qxb4 {[%emt 0:00:25]} Qf2+ {[%emt 0:01:43]} 58. Bg2 {[%emt 0:00:04] Some like it hot} Re7 {[%emt 0:00:13][%cal Oc6c5] ( -> ...c5!)} 59. c5 $1 {[%emt 0:03:49]} Ba6 {[%emt 0:01:32] Inhibits Qc4. And now ...Bf1 would win.} 60. Qb3 $1 {[%emt 0:00:26]} g6 {[%emt 0:01:29]} 61. h4 {[%emt 0:01:02][%cal Oh4h5]} h5 {[%emt 0:01:40]} 62. a4 $36 {[%emt 0:00:56][%mdl 2048] Black is under pressure.} Bf1 {[%emt 0:00:48]} (62... Qd2 $1 $14) 63. Qf3 $16 {[%emt 0:00:05]} Qxg2+ {[%emt 0:00:05]} 64. Qxg2 {[%emt 0:00:03]} Bxg2 {[%emt 0:00:06]} 65. Kxg2 {[%emt 0:00:05][%mdl 4096] Endgame a5 is the strong threat. KR-KR} Rb7 {[%emt 0:00:07]} 66. Re2 {[%emt 0:00:35] Hoping for a5.} Rb4 $2 {[%emt 0:00:50] This move loses the game for Black.} (66... e5 $16 {is a better defense.}) 67. a5 $18 {[%emt 0:00:33]} Rb5 {[%emt 0:01:36] [#]} 68. b4 $1 {[%emt 0:02:20][%mdl 512]} Rxb4 {[%emt 0:00:11] ...Ra4 would be deadly.} 69. Ra2 {[%emt 0:00:02] Against Ra4} Rb7 $2 {[%emt 0:00:08]} (69... Rb8 70. a6 Ra8) 70. a6 {[%emt 0:00:05]} Ra7 {[%emt 0:00:36][%cal Oe6e5]} 71. Kf3 {[%emt 0:00:03]} Kf6 {[%emt 0:00:52]} 72. Ke3 {[%emt 0:00:04]} e5 {[%emt 0:00:05]} 73. fxe5+ {[%emt 0:01:30]} Kxe5 {[%emt 0:00:07]} 74. Kd3 {[%emt 0:00:07]} Kd5 {[%emt 0:01:14]} 75. Ra5 {[%emt 0:00:05]} Ke5 {[%emt 0:01:50]} 76. Kc4 {[%emt 0:00:05]} f4 {[%emt 0:00:35]} (76... Ra8 $142 77. Ra1 Ke4) 77. gxf4+ {[%emt 0:00:19]} Kxf4 {[%emt 0:00:02]} 78. Kb4 {[%emt 0:00:39]} Kg4 {[%emt 0:02:17]} 79. Ra3 {[%emt 0:01:29] Intending Ka5 and mate.} Kxh4 {[%emt 0:00:16]} 80. Ka5 {[%emt 0:00:02] White mates.} g5 {[%emt 0:00:23]} 81. Kb6 {[%emt 0:00:05][%csl LRa7,LRc6]} Ra8 {[%emt 0:00:26]} 82. Kb7 {[%emt 0:00:25]} Rf8 {[%emt 0:01:39]} 83. a7 {[%emt 0:03:04]} g4 {[%emt 0:00:08]} 84. a8=Q {[%emt 0:00:03]} ({Not} 84. a8=B g3 85. Ra2 Kh3 $11) 84... Rxa8 {[%emt 0:00:09]} 85. Rxa8 {[%emt 0:00:03] KR-K3P} g3 {[%emt 0:00:13]} 86. Rg8 {[%emt 0:00:03]} Kh3 {[%emt 0:00:08]} 87. Kxc6 {[%emt 0:00:02] KR-KPP} h4 {[%emt 0:00:27]} 88. Kd5 {[%emt 0:00:06]} Kg2 {[%emt 0:05:27]} 89. Ke4 {[%emt 0:03:41]} Kf2 {[%emt 0:02:36]} 90. Kf4 {[%emt 0:07:00]} g2 {[%emt 0:00:18]} 91. c6 {[%emt 0:00:08]} h3 {[%emt 0:01:12]} 92. c7 {[%emt 0:00:35]} h2 {[%emt 0:00:39]} 93. c8=Q {[%emt 0:00:13]} (93. c8=B g1=Q) 93... g1=Q {[%emt 0:07:06]} 94. Qc5+ {[%emt 0:00:18]} Kf1 {[%emt 0:00:08]} 95. Qc1+ {[%emt 0:00:04]} Kf2 {[%emt 0:00:14]} 96. Qd2+ {[%emt 0:00:04]} Kf1 {[%emt 0:00:06]} 97. Qd1+ {[%emt 0:00:04]} Kf2 {[%emt 0:00:07]} 98. Qf3+ {[%emt 0:00:12]} Ke1 {[%emt 0:00:09]} 99. Re8+ {[%emt 0:00:03]} Kd2 {[%emt 0:00:17]} 100. Re2+ {[%emt 0:00:03]} Kc1 {[%emt 0:00:15]} 101. Qc3+ {[%emt 0:00:05] Weighted Error Value: White=0.20 (precise) /Black=0.22 (precise)} 1-0

[Event "Marshall CC FIDE Premier January 2024"]
[Site "New York"]
[Date "2024.01.08"]
[Round "5.4"]
[White "Hebbar, Eshaan"]
[Black "Bonin, Jay"]
[Result "1/2-1/2"]
[ECO "D37"]
[WhiteElo "2018"]
[BlackElo "2166"]
[Annotator "TA"]
[PlyCount "139"]
[EventDate "2024.01.05"]
[EventType "swiss"]
[EventCountry "USA"]
[SourceTitle "playchess.com"]
[Source "ChessBase"]
[SourceQuality "1"]
[TimeControl "5400+30"]

{[%evp 9,139,20,21,21,22,21,37,34,33,29,55,25,18,22,31,14,38,21,71,8,20,14,14,15,25,0,2,0,3,0,0,-14,-11,-19,-17,-17,-16,-21,0,-18,-18,-18,-18,-14,-11,-20,-1,-5,-7,-21,-20,-10,-12,-26,0,0,0,0,0,-35,-43,-98,-90,-161,-77,-135,-91,-166,0,0,0,0,0,0,200,208,246,250,236,233,243,177,182,178,644,620,568,589,858,812,689,613,532,219,219,219,219,219,308,219,219,218,29962,7989,29976,176,176,176,176,176,176,176,176,176,176,0,29977,29978,29978,0,0,0,0,0,0,0,0,0,0,0,0,0]} 1. d4 {[%emt 0:00:03]} Nf6 {[%emt 0:00:08]} 2. c4 {[%emt 0:00:30]} e6 {[%emt 0:00:12]} 3. Nf3 {[%emt 0:00:19]} a6 {[%emt 0:00:06]} 4. Nc3 {[%emt 0:00:19]} d5 {[%emt 0:00:07]} 5. cxd5 {[%emt 0:00:10]} exd5 {[%emt 0:00:03]} 6. Bg5 {[%emt 0:00:10] D37: Queen's Gambit Declined: 5 Bf4.} Be7 {[%emt 0:00:42]} 7. e3 {[%emt 0:00:05]} c6 {[%emt 0:00:15]} 8. Bd3 $1 {[%emt 0:00:05] White is slightly better. The main line 8.Bd3 scores better than 8.Qc2.} Nbd7 {[%emt 0:00:12]} 9. O-O {[%emt 0:00:11]} Nf8 {[%emt 0:00:05]} 10. Qc2 {[%emt 0:00:57]} Ne6 {[%emt 0:00:08]} 11. Bh4 {[%emt 0:00:09][%cal Ob2b4,Bg5h4,Bh4f2,Bf2g3,Bg3e5][%mdl 32]} g6 {[%emt 0:00:05]} 12. Ne5 {[%emt 0:03:09]} Ng7 {[%emt 0:00:18] [#]} 13. Rae1 $146 {[%emt 0:02:44]} ({Predecessor:} 13. f3 O-O 14. Rad1 Nd7 15. Nxd7 Bxd7 16. Bf2 Rc8 17. e4 dxe4 18. fxe4 Bg4 19. Be2 Bxe2 20. Qxe2 {½-½ Mosesov,D (2405)-Omelja,A (2509) Kiev-Lvov Region Rapid 2021 (4)}) 13... Bf5 {[%emt 0:00:25]} (13... O-O $11) 14. f3 {[%emt 0:00:17] White is much more active. The black rooks are badly placed.} (14. Qb3 $16 Rb8 15. Bg3) 14... Bxd3 $11 {[%emt 0:00:16]} 15. Nxd3 {[%emt 0:01:09]} O-O {[%emt 0:00:20]} 16. Bf2 {[%emt 0:00:28]} Ne6 {[%emt 0:00:29]} 17. Kh1 {[%emt 0:03:38]} Nh5 {[%emt 0:09:59]} 18. g4 {[%emt 0:03:01]} Nhg7 {[%emt 0:00:12]} 19. Bg3 {[%emt 0:04:28]} f5 {[%emt 0:06:15]} 20. Be5 {[%emt 0:02:02]} (20. Qb3 $5 {[%cal Rb3b7]} b5 21. Ne2 $14) 20... Bd6 {[%emt 0:01:42]} 21. Ne2 {[%emt 0:07:41][%cal Bc3e2,Be2f4,Bf4d3][%mdl 32]} fxg4 {[%emt 0:05:12]} 22. fxg4 {[%emt 0:00:04]} Ng5 {[%emt 0:01:25]} 23. Nef4 {[%emt 0:02:26]} Qd7 {[%emt 0:02:03]} 24. Bxd6 {[%emt 0:02:57]} (24. Qb3 $5 {[%cal Re3e4]}) 24... Qxd6 {[%emt 0:00:10]} 25. Ne5 {[%emt 0:00:08]} Ne4 {[%emt 0:01:17]} 26. Nfd3 {[%emt 0:00:22]} Ne6 {[%emt 0:02:14]} (26... Qe7 {simplifies} 27. Qe2 Ne6 28. Rxf8+ Rxf8 29. Rf1 N6g5) 27. Kg2 {[%emt 0:02:03]} c5 {[%emt 0:05:02]} 28. dxc5 {[%emt 0:02:13]} N6xc5 {[%emt 0:00:51]} 29. Rd1 {[%emt 0:02:16]} Nxd3 {[%emt 0:02:44]} 30. Nxd3 {[%emt 0:01:19]} Qe6 {[%emt 0:00:50]} 31. Qe2 {[%emt 0:01:41]} Ng5 {[%emt 0:07:12]} (31... Rxf1 {simplifies} 32. Rxf1 Rc8 33. Qd1 Nd6) 32. Nf4 {[%emt 0:10:42]} Qe4+ {[%emt 0:00:10]} 33. Kg3 $1 {[%emt 0:00:09]} (33. Kg1 Rxf4 34. h3 Raf8 35. Rxf4 Nxh3+ 36. Kh2 Nxf4 $19) 33... Rae8 {[%emt 0:07:20]} 34. Rde1 {[%emt 0:05:04]} (34. h4 $5 {[%cal Rh4g5]} Qxe3+ 35. Qxe3 Rxe3+ 36. Kg2 $11) 34... Qe5 {[%emt 0:07:31] Strongly threatening ...Ne6.} 35. Qd3 {[%emt 0:13:01]} ({Better is} 35. Kg2 $15) 35... Ne4+ $1 $17 {[%emt 0:03:39]} (35... Qxb2 $2 36. Qxd5+ (36. Nxd5 $2 Ne4+ $19) 36... Nf7 37. Ne6 $18) 36. Kh3 {[%emt 0:00:36]} (36. Kg2 $17) 36... d4 {[%emt 0:07:24]} (36... Qxb2 37. Qxd5+ Kg7 38. Re2 $15 (38. Ne6+ $2 Rxe6 39. Qd4+ Qxd4 $19)) (36... Nf6 $1 $19 {and Black stays clearly on top.} 37. Qd4 Qg5) 37. Qb3+ {[%emt 0:10:59]} ({White should try} 37. Kg2 dxe3 {[%mdl 64] Discovered Attack} 38. Qd5+ Qxd5 39. Nxd5) 37... Kh8 {[%emt 0:00:48] And now ...Nd2 would win.} 38. Qb4 {[%emt 0:01:43] [#] Prevents Nd2} (38. exd4 $17 Nf2+ {[%mdl 64] Discovered Attack} 39. Kg2 Qxf4 40. Rxe8 Rxe8 41. Rxf2 Qxg4+ 42. Qg3 Qxd4 43. Qf3) 38... Ng5+ $2 {[%emt 0:04:37]} (38... Kg7 $1 $19 {aiming for ...dxe3.} 39. Qxb7+ (39. exd4 $2 Nf2+ {[%mdl 64] Deflection} 40. Rxf2 Qxe1 $19) 39... Kh6) 39. Kg2 $1 $11 {[%emt 0:00:50][%cal Of4g6,Bh3g2,Bg2g3,Bg3f3,Bf3e3][%mdl 32] Nxg6+! would be deadly.} Qe4+ {[%emt 0:02:54]} 40. Kg3 {[%emt 0:00:08]} dxe3 {[%emt 0:00:40]} 41. Qc5 $36 {[%emt 0:05:02][%mdl 2048] White has the initiative. Chess con chili.} Rxf4 $2 {[%emt 0:09:50]} 42. Qc3+ $18 {[%emt 0:02:08]} (42. Rxf4 $2 {perishes.} Qxf4+ 43. Kxf4 Ne6+ 44. Kf3 Nxc5 $19) 42... Qd4 {[%emt 0:02:15][%csl Gd4][%cal Rf4g4]} 43. Rxf4 {[%emt 0:00:08][%mdl 64] Pin} Ne4+ {[%emt 0:00:06]} 44. Kf3 {[%emt 0:01:26]} Qxc3 {[%emt 0:00:27]} 45. bxc3 {[%emt 0:00:02]} Nxc3 {[%emt 0:00:05][%cal Ob7b5][%mdl 4096] Endgame KRR-KRN} 46. Rf7 {[%emt 0:00:11]} ({Worse is} 46. Rxe3 Rxe3+ 47. Kxe3 Nd5+ 48. Kf3 Nxf4 49. Kxf4 Kg7 $17) 46... b5 $2 {[%emt 0:03:04]} (46... e2 47. Rxb7 Rd8) 47. Rxe3 {[%emt 0:00:09]} Rxe3+ {[%emt 0:00:03]} 48. Kxe3 {[%emt 0:00:06]} Nxa2 {[%emt 0:00:04] KR-KN} 49. Kd4 {[%emt 0:00:27] Against Nc3} Kg8 {[%emt 0:00:44]} 50. Ra7 {[%emt 0:00:56]} Nb4 {[%emt 0:00:08]} 51. Kc3 {[%emt 0:00:04]} (51. Ke4 $142 Kh8 52. g5) 51... Nc6 {[%emt 0:01:03]} 52. Rxa6 {[%emt 0:00:31]} Ne5 {[%emt 0:00:15]} 53. h3 {[%emt 0:01:33][%cal Bh2h3,Bh3g4][%mdl 32] Hoping for Kd4.} Kg7 {[%emt 0:01:15]} (53... Nf3 {was necessary.} 54. Kb4 Kg7) 54. Rb6 {[%emt 0:00:19]} g5 {[%emt 0:04:09]} 55. Rxb5 {[%emt 0:00:55]} Nf7 {[%emt 0:01:04]} (55... Kf6 $18 56. Kc2 h6) 56. Kd4 {[%emt 0:00:15]} (56. Rb7 $142 Kf6 57. Kd4 Nh6 58. Rb6+ Kg7 59. Ke5 Ng8 60. Kf5 Ne7+ 61. Kxg5) 56... h5 {[%emt 0:00:19]} 57. Kd5 $2 {[%emt 0:01:10]} (57. gxh5 Kh6 58. Rf5 Nh8 59. Rf8 Kg7 60. Rb8 Nf7 61. Rb6 g4 62. hxg4) 57... hxg4 {[%emt 0:00:10]} 58. hxg4 {[%emt 0:00:02]} Nh6 {[%emt 0:00:12]} 59. Ke6 {[%emt 0:00:06]} Kg6 {[%emt 0:00:16]} 60. Rb4 {[%emt 0:00:19]} Nf7 {[%emt 0:00:55]} 61. Rd4 {[%emt 0:00:43]} Nh6 {[%emt 0:00:12]} 62. Ke7 $2 {[%emt 0:02:25]} (62. Ra4 $18) 62... Nxg4 $2 {[%emt 0:02:16][%mdl 8192]} 63. Rxg4 $11 {[%emt 0:00:21] KR-KP} Kf5 {[%emt 0:00:04] [#]} 64. Ra4 $2 {[%emt 0:02:16]} (64. Rg1 $1 {mates} g4 65. Kf7 Kg5 66. Kg7 Kf4 67. Kg6 Kf3 68. Kg5 g3 69. Kh4) 64... g4 {[%emt 0:00:07][%cal Bg5g4,Bg4g3,Bg3g2][%mdl 32] The position is equal.} 65. Kd6 {[%emt 0:00:06]} g3 {[%emt 0:00:13]} 66. Kd5 {[%emt 0:00:10]} g2 $1 {[%emt 0:00:17]} 67. Ra1 {[%emt 0:00:03]} Kf4 $1 {[%emt 0:00:18]} 68. Kd4 {[%emt 0:00:09]} Kf3 {[%emt 0:00:04]} 69. Kd3 {[%emt 0:00:04]} Kf2 {[%emt 0:00:06]} 70. Ra2+ {[%emt 0:00:08] Black defended with fortune.   Weighted Error Value: White=0.32/Black=0.51} 1/2-1/2

[Event "Marshall CC FIDE Premier January 2024"]
[Site "New York"]
[Date "2024.01.08"]
[Round "5.5"]
[White "Subervi, Jonathan Sigfredo"]
[Black "Yoo, Eugene"]
[Result "0-1"]
[ECO "E48"]
[WhiteElo "2019"]
[BlackElo "2168"]
[Annotator "RC"]
[PlyCount "54"]
[EventDate "2024.01.05"]
[EventType "swiss"]
[EventCountry "USA"]
[SourceTitle "playchess.com"]
[Source "ChessBase"]
[SourceQuality "1"]
[TimeControl "5400+30"]

1. d4 {[%emt 0:02:46]} Nf6 {[%emt 0:03:13]} 2. c4 {[%emt 0:01:44]} e6 {[%emt 0:00:14]} 3. Nc3 {[%emt 0:02:19]} Bb4 {[%emt 0:00:03]} 4. e3 {[%emt 0:01:54]} O-O {[%emt 0:01:14]} 5. Bd3 {[%emt 0:02:08]} d5 {[%emt 0:00:39]} 6. cxd5 {[%emt 0:02:24]} exd5 {[%emt 0:05:06]} 7. a3 {[%emt 0:00:23]} Bd6 {[%emt 0:03:36]} 8. Qc2 {[%emt 0:01:09]} c6 {[%emt 0:01:41]} 9. Nge2 {[%emt 0:01:34]} Re8 {[%emt 0:06:25]} 10. f3 {[%emt 0:25:02]} c5 {[%emt 0:17:37]} 11. dxc5 {[%emt 0:04:47]} Bxc5 {[%emt 0:00:52]} 12. Nb5 {[%emt 0:02:34]} Bb6 {[%emt 0:01:56]} 13. Nbd4 {[%emt 0:00:32]} Nc6 {[%emt 0:09:03]} 14. O-O {[%emt 0:01:01]} Bd7 {[%emt 0:02:07]} 15. Bd2 {[%emt 0:06:53]} Rc8 {[%emt 0:00:42]} 16. Nxc6 {[%emt 0:00:56]} bxc6 {[%emt 0:02:16]} 17. Qc1 {[%emt 0:11:18]} c5 {[%emt 0:04:37]} 18. Kh1 {[%emt 0:04:26]} Qe7 {[%emt 0:06:03]} 19. Bc2 {[%emt 0:06:25]} h5 {[%emt 0:13:55]} 20. Ng3 {[%emt 0:05:44]} g6 {[%emt 0:02:04]} 21. e4 {[%emt 0:04:55]} h4 {[%emt 0:01:37]} 22. Ne2 {[%emt 0:00:25]} dxe4 {[%emt 0:03:31]} 23. Bg5 {[%emt 0:05:40]} exf3 {[%emt 0:04:47]} 24. Rxf3 {[%emt 0:02:00]} h3 {[%emt 0:00:01]} 25. Bxf6 {[%emt 0:02:58]} hxg2+ {[%emt 0:05:10]} 26. Kxg2 {[%emt 0:00:48]} Qxe2+ {[%emt 0:00:13]} 27. Rf2 {[%emt 0:00:30]} Qg4+ {[%emt 0:05:18]} 0-1